bitfinex/quotes_SOLUSD_20241107
["timestamp","ask_amount","ask_price","bid_price","bid_amount"]
[1731022943160,10.07587871,195.71,195.65,10.07587871]
[1731022943569,10.07587871,195.72,195.66,10.07587871]
[1731022944076,10.07587871,195.71,195.65,10.07587871]
[1731022944481,10.07587871,195.7,195.64,10.07587871]
[1731022944782,10.07587871,195.71,195.65,10.07587871]
[1731022945972,10.07587871,195.7,195.64,10.07587871]
[1731022946292,10.07587871,195.71,195.65,10.07587871]
[1731022947785,16.3547,195.72,195.65,10.07587871]
[1731022947971,26.43057871,195.72,195.65,10.07587871]
[1731022948565,10.07587871,195.7,195.59,20.0]
[1731022948764,10.07587871,195.66,195.6,10.07587871]
[1731022948966,10.07587871,195.65,195.57,15.60604552]
[1731022949168,10.07587871,195.63,195.53,22.1584]
[1731022949482,0.32549,195.69,195.53,22.1584]
[1731022949483,10.07587871,195.62,195.56,10.07587871]
[1731022949683,10.07587871,195.65,195.59,10.07587871]
[1731022950384,10.07587871,195.63,195.57,10.07587871]
[1731022950585,10.07587871,195.64,195.58,10.07587871]
[1731022952084,10.07587871,195.62,195.53,15.7494]
[1731022952281,10.07587871,195.62,195.56,10.07587871]
[1731022952673,10.07587871,195.63,195.57,10.07587871]
[1731022955484,10.07587871,195.6,195.54,10.07587871]
[1731022955671,10.07587871,195.59,195.53,10.07587871]
[1731022955872,10.07587871,195.57,195.51,10.07587871]
[1731022956182,10.07587871,195.59,195.53,10.07587871]
[1731022957570,10.07587871,195.57,195.48,15.9071]
[1731022957770,10.07587871,195.57,195.51,10.07587871]
[1731022958861,10.07587871,195.58,195.52,10.07587871]
[1731022959064,43.776884,195.63,195.54,10.07587871]
[1731022959274,10.07587871,195.6,195.54,10.07587871]
[1731022961394,10.07587871,195.6,195.48,15.9071]
[1731022961570,10.07587871,195.6,195.54,10.07587871]
[1731022961889,10.07587871,195.59,195.53,10.07587871]
[1731022964983,10.07587871,195.58,195.52,10.07587871]
[1731022965597,10.07587871,195.57,195.52,10.07587871]
[1731022965974,10.07587871,195.59,195.53,10.07587871]
[1731022966176,10.07587871,195.58,195.52,10.07587871]
[1731022966899,10.07587871,195.55,195.49,10.07587871]
[1731022967075,10.07587871,195.54,195.48,10.07587871]
[1731022970100,6.2057,195.57,195.52,10.07587871]
[1731022974687,16.28157871,195.57,195.45,43.902374]
[1731022974889,10.07587871,195.56,195.5,10.07587871]
[1731022975202,16.28157871,195.57,195.51,10.07587871]
[1731022976193,6.2057,195.57,195.52,10.07587871]
[1731022977599,16.28157871,195.57,195.51,10.07587871]
[1731022978593,21.2781734,195.58,195.53,10.07587871]
[1731022978914,21.2781734,195.58,195.54,10.07587871]
[1731022978915,15.9499,195.58,195.54,10.07587871]
[1731022979506,5.32857853,195.59,195.54,10.07587871]
[1731022980509,15.40445724,195.59,195.53,10.07587871]
[1731022980697,15.40445724,195.59,195.54,10.07587871]
[1731022980698,5.32857853,195.59,195.54,10.07587871]
[1731022981016,15.40445724,195.59,195.53,10.07587871]
[1731022982697,10.07587871,195.57,195.51,10.07587871]
[1731022983007,10.07587871,195.58,195.52,10.07587871]
[1731022985998,10.07587871,195.57,195.5,10.07587871]
[1731022986206,10.07587871,195.55,195.49,10.07587871]
[1731022986901,10.07587871,195.54,195.48,10.07587871]
[1731022988717,10.07587871,195.53,195.43,15.8118]
[1731022988900,10.07587871,195.52,195.46,10.07587871]
[1731022990204,10.07587871,195.53,195.48,10.07587871]
[1731022990924,10.07587871,195.53,195.41,20.0]
[1731022991213,10.07587871,195.52,195.46,10.07587871]
[1731022992009,10.07587871,195.51,195.45,10.07587871]
[1731022992704,10.07587871,195.51,195.35,111.7240999]
[1731022992705,10.07587871,195.48,195.42,10.07587871]
[1731022993029,10.07587871,195.47,195.41,10.07587871]
[1731022993599,10.07587871,195.48,195.42,10.07587871]
[1731022994315,16.26827871,195.48,195.42,10.07587871]
[1731022994524,10.07587871,195.47,195.36,20.0]
[1731022994824,10.07587871,195.45,195.39,10.07587871]
[1731022995625,10.07587871,195.44,195.35,15.6240999]
[1731022995804,10.07587871,195.43,195.37,10.07587871]
[1731022996724,10.07587871,195.45,195.39,10.07587871]
[1731022997400,33.85276271,195.44,195.38,10.07587871]
[1731022999104,23.776884,195.44,195.39,10.07587871]
[1731022999308,6.1924,195.48,195.43,10.07587871]
[1731022999617,6.1924,195.48,195.45,10.07587871]
[1731023000013,6.1924,195.48,195.44,10.07587871]
[1731023001330,6.1924,195.48,195.37,15.0282]
[1731023001537,6.1924,195.48,195.44,10.07587871]
[1731023002034,16.26827871,195.48,195.37,15.0282]
[1731023002224,16.26827871,195.48,195.42,10.07587871]
[1731023002738,6.1924,195.48,195.43,10.07587871]
[1731023005128,6.1924,195.48,195.44,10.07587871]
[1731023006826,6.1924,195.48,195.43,10.07587871]
[1731023007821,6.1924,195.48,195.37,15.0282]
[1731023007822,16.26827871,195.48,195.42,10.07587871]
[1731023008132,10.07587871,195.45,195.39,10.07587871]
[1731023009336,10.07587871,195.44,195.38,10.07587871]
[1731023009709,10.07587871,195.43,195.37,10.07587871]
[1731023009920,10.07587871,195.42,195.32,31.59744127]
[1731023010136,10.07587871,195.41,195.35,10.07587871]
[1731023010828,10.07587871,195.42,195.36,10.07587871]
[1731023011136,20.0,195.44,195.39,10.07587871]
[1731023011630,21.06773667,195.45,195.42,10.07587871]
[1731023011811,15.738,195.45,195.43,10.07587871]
[1731023012333,11.51923949,195.48,195.44,10.07587871]
[1731023012633,11.51923949,195.48,195.34,15.8573]
[1731023012634,16.6644,195.5,195.46,10.07587871]
[1731023012835,16.6644,195.5,195.47,10.07587871]
[1731023013215,16.6644,195.5,195.48,10.07587871]
[1731023013629,0.12549,195.52,195.48,10.07587871]
[1731023013935,23.902374,195.52,195.48,10.07587871]
[1731023014111,23.902374,195.52,195.47,10.07587871]
[1731023015835,23.902374,195.52,195.38,6.2405]
[1731023015836,10.07587871,195.5,195.38,6.2405]
[1731023016035,10.07587871,195.5,195.44,10.07587871]
[1731023017836,10.07587871,195.51,195.45,10.07587871]
[1731023018041,10.07587871,195.48,195.35,20.0]
[1731023018335,10.07587871,195.48,195.35,0.12549]
[1731023018528,10.07587871,195.48,195.43,10.07587871]
[1731023018928,10.07587871,195.48,195.35,0.12549]
[1731023018929,33.85276271,195.5,195.44,10.07587871]
[1731023019441,23.776884,195.5,195.45,10.07587871]
[1731023019611,20.0,195.51,195.46,10.07587871]
[1731023021933,20.0,195.51,195.45,10.07587871]
[1731023022317,20.0,195.51,195.35,43.902374]
[1731023022518,23.776884,195.51,195.46,10.07587871]
[1731023024035,5.3280485,195.53,195.48,10.07587871]
[1731023024238,23.776884,195.52,195.48,10.07587871]
[1731023024538,10.07587871,195.57,195.51,10.07587871]
[1731023024743,0.12549,195.56,195.51,10.07587871]
[1731023025545,5.32144081,195.58,195.51,10.07587871]
[1731023025725,5.32144081,195.58,195.41,25.0994946]
[1731023025726,15.39731952,195.58,195.52,10.07587871]
[1731023026116,5.32144081,195.58,195.54,10.07587871]
[1731023026316,10.07587871,195.61,195.55,10.07587871]
[1731023026624,5.32021108,195.61,195.57,10.07587871]
[1731023028136,15.39608979,195.61,195.55,10.07587871]
[1731023030129,5.32021108,195.61,195.56,10.07587871]
[1731023031750,15.39608979,195.61,195.55,10.07587871]
[1731023031928,5.32021108,195.61,195.56,10.07587871]
[1731023032335,5.32021108,195.61,195.57,10.07587871]
[1731023032850,15.39608979,195.61,195.55,10.07587871]
[1731023034239,5.32021108,195.61,195.56,10.07587871]
[1731023034447,5.32021108,195.61,195.57,10.07587871]
[1731023035244,5.32021108,195.61,195.59,10.07587871]
[1731023035436,22.7476,195.64,195.59,10.07587871]
[1731023035627,28.06701897,195.64,195.59,10.07587871]
[1731023035821,28.06701897,195.64,195.58,10.07587871]
[1731023035822,38.14289768,195.64,195.58,10.07587871]
[1731023037648,10.07587871,195.63,195.57,10.07587871]
[1731023037951,28.06701897,195.64,195.5,40.30351484]
[1731023037952,5.31941897,195.64,195.62,10.07587871]
[1731023038152,21.785,195.72,195.63,10.07587871]
[1731023038336,5.32440862,195.69,195.65,10.07587871]
[1731023038543,21.785,195.72,195.6,40.30351484]
[1731023038544,21.785,195.72,195.67,10.07587871]
[1731023038941,21.785,195.72,195.6,40.30351484]
[1731023038942,31.86087871,195.72,195.66,10.07587871]
[1731023039931,15.1496,195.72,195.67,10.07587871]
[1731023040136,15.39974598,195.73,195.67,10.07587871]
[1731023040637,5.32386727,195.73,195.69,10.07587871]
[1731023040833,10.07587871,195.74,195.68,10.07587871]
[1731023041256,15.39918683,195.74,195.68,10.07587871]
[1731023041460,20.97798073,195.74,195.68,15.65467261]
[1731023041835,15.65467261,195.73,195.68,15.65467261]
[1731023042243,20.97798073,195.74,195.68,15.65467261]
[1731023042449,5.32330812,195.74,195.7,15.65467261]
[1731023042628,5.32330812,195.74,195.71,15.65467261]
[1731023042934,5.32330812,195.74,195.7,15.65467261]
[1731023043729,5.32330812,195.74,195.71,15.65467261]
[1731023044251,5.32330812,195.74,195.7,15.65467261]
[1731023045355,5.32330812,195.74,195.71,15.65467261]
[1731023045651,5.32330812,195.74,195.73,15.65467261]
[1731023045851,0.5665064,195.75,195.73,15.65467261]
[1731023047935,0.5665064,195.75,195.72,15.65467261]
[1731023048138,0.5665064,195.75,195.73,15.65467261]
[1731023048958,0.5665064,195.75,195.74,15.65467261]
[1731023053638,0.5665064,195.75,195.72,15.4031]
[1731023053839,0.5665064,195.75,195.74,15.65467261]
[1731023054453,0.5665064,195.75,195.72,15.65467261]
[1731023055244,0.5665064,195.75,195.73,15.65467261]
[1731023055634,0.5665064,195.75,195.67,15.22]
[1731023055840,0.5665064,195.75,195.7,15.65467261]
[1731023056041,0.5665064,195.75,195.71,15.65467261]
[1731023056458,0.5665064,195.75,195.72,15.65467261]
[1731023057148,0.5665064,195.75,195.71,15.65467261]
[1731023057337,16.22117901,195.75,195.69,15.65467261]
[1731023057543,0.5665064,195.75,195.71,15.65467261]
[1731023057738,0.5665064,195.75,195.7,15.65467261]
[1731023057938,16.22117901,195.75,195.69,15.65467261]
[1731023058843,0.5665064,195.75,195.7,15.65467261]
[1731023059949,39.55704661,195.74,195.63,16.3145]
[1731023060157,15.65467261,195.71,195.65,15.65467261]
[1731023060865,15.65467261,195.7,195.64,15.65467261]
[1731023061069,15.65467261,195.69,195.63,15.65467261]
[1731023061241,15.65467261,195.67,195.61,15.65467261]
[1731023065268,15.65467261,195.67,195.62,15.65467261]
[1731023065869,15.65467261,195.67,195.61,15.65467261]
[1731023066051,15.65467261,195.65,195.59,15.65467261]
[1731023067156,15.65467261,195.66,195.6,15.65467261]
[1731023067349,10.02762114,195.66,195.6,10.02762114]
[1731023069352,10.02762114,195.65,195.59,10.02762114]
[1731023069551,33.80450514,195.64,195.54,16.004]
[1731023069752,0.12549,195.67,195.54,16.004]
[1731023069753,10.02762114,195.63,195.57,10.02762114]
[1731023072161,10.02762114,195.63,195.56,10.02762114]
[1731023072356,10.02762114,195.63,195.54,16.004]
[1731023072357,23.776884,195.63,195.58,10.02762114]
[1731023072877,33.80450514,195.63,195.57,10.02762114]
[1731023073374,5.32445774,195.65,195.62,10.02762114]
[1731023073564,189.05902754,195.75,195.64,10.02762114]
[1731023073760,32.24452754,195.75,195.69,10.02762114]
[1731023073960,5.32522302,195.74,195.7,10.02762114]
[1731023074363,22.2169064,195.75,195.7,10.02762114]
[1731023074570,22.2169064,195.75,195.62,15.6807]
[1731023074784,0.5665064,195.75,195.72,10.02762114]
[1731023075079,0.5665064,195.75,195.71,10.02762114]
[1731023075279,0.5665064,195.75,195.72,10.02762114]
[1731023075487,0.5665064,195.75,195.63,23.776884]
[1731023075690,0.5665064,195.75,195.72,15.64815855]
[1731023076395,0.5665064,195.75,195.73,15.64815855]
[1731023076564,0.5665064,195.75,195.72,15.64815855]
[1731023077167,0.5665064,195.75,195.73,15.64815855]
[1731023078658,0.5665064,195.75,195.74,15.64815855]
[1731023078973,0.5665064,195.75,195.73,15.64815855]
[1731023079356,0.5665064,195.75,195.71,15.64815855]
[1731023079676,0.5665064,195.75,195.7,15.64815855]
[1731023079987,0.5665064,195.75,195.71,15.64815855]
[1731023080160,0.5665064,195.75,195.72,15.64815855]
[1731023085091,0.5665064,195.75,195.7,15.64815855]
[1731023086569,0.5665064,195.75,195.63,20.0]
[1731023086780,15.64815855,195.74,195.69,15.64815855]
[1731023087088,16.21466495,195.75,195.69,15.64815855]
[1731023087673,0.5665064,195.75,195.7,15.64815855]
[1731023088775,39.42504255,195.74,195.62,15.6807]
[1731023089083,39.42504255,195.74,195.68,15.64815855]
[1731023089676,39.42504255,195.74,195.69,15.64815855]
[1731023090089,5.32361833,195.8,195.73,42.74289]
[1731023090294,0.5665064,195.94,195.84,20.0]
[1731023090468,0.5665064,195.94,195.93,15.64815855]
[1731023092077,0.5665064,195.94,195.92,15.64815855]
[1731023092386,0.5665064,195.94,195.9,15.64815855]
[1731023092894,0.5665064,195.94,195.91,1.27526032]
[1731023093085,0.5665064,195.94,195.88,15.64815855]
[1731023093389,0.5665064,195.94,195.89,16.9234909]
[1731023093694,0.5665064,195.94,195.9,1.27533235]
[1731023093996,0.5665064,195.94,195.91,1.27533235]
[1731023094187,0.5665064,195.94,195.92,1.27533235]
[1731023094391,0.5665064,195.94,195.9,15.64815855]
[1731023094592,0.5665064,195.94,195.91,1.27526825]
[1731023094788,0.5665064,195.94,195.9,15.64815855]
[1731023095097,0.5665064,195.94,195.91,1.27526803]
[1731023095292,0.5665064,195.94,195.9,15.64815855]
[1731023095600,0.5665064,195.94,195.91,1.27526813]
[1731023095790,0.5665064,195.94,195.9,15.64815855]
[1731023095975,0.5665064,195.94,195.91,1.27526725]
[1731023096169,0.5665064,195.94,195.9,15.64815855]
[1731023096376,0.5665064,195.94,195.91,1.27526737]
[1731023096593,0.5665064,195.94,195.91,15.64815855]
[1731023097176,0.5665064,195.94,195.92,1.2752456]
[1731023097378,0.5665064,195.94,195.92,15.64815855]
[1731023097780,0.5665064,195.94,195.91,15.64815855]
[1731023098390,0.5665064,195.94,195.93,15.64815855]
[1731023098700,0.5665064,195.94,195.92,15.64815855]
[1731023099500,0.5665064,195.94,195.91,15.64815855]
[1731023099682,0.5665064,195.94,195.92,1.27523286]
[1731023099885,0.5665064,195.94,195.88,2.0403765]
[1731023100198,0.5665064,195.94,195.91,15.64815855]
[1731023101901,0.5665064,195.94,195.92,15.64815855]
[1731023102085,0.5665064,195.94,195.91,15.64815855]
[1731023102581,0.5665064,195.94,195.92,15.64815855]
[1731023105003,0.5665064,195.94,195.93,15.64815855]
[1731023105800,0.5665064,195.94,195.93,16.92319661]
[1731023106002,0.5665064,195.94,195.93,18.96319762]
[1731023106188,0.5665064,195.94,195.93,16.92319661]
[1731023106507,0.5665064,195.94,195.93,18.96322354]
[1731023106899,0.5665064,195.94,195.93,16.92319661]
[1731023107102,0.5665064,195.94,195.93,18.96324367]
[1731023109906,0.5665064,195.94,195.93,21.51324915]
[1731023110414,15.64815855,196.03,195.93,5.8650906]
[1731023110586,15.64815855,196.02,195.94,5.8650906]
[1731023110911,15.64815855,196.02,195.96,15.64815855]
[1731023111107,15.64815855,196.02,195.97,1.27503806]
[1731023111301,21.8784,196.05,195.96,15.64815855]
[1731023111302,15.64815855,196.01,195.98,1.27503806]
[1731023111506,15.64815855,196.01,195.96,15.64815855]
[1731023111704,15.64815855,196.02,195.97,1.27479843]
[1731023111887,15.64815855,196.02,195.98,1.27479843]
[1731023112088,15.64815855,196.02,195.99,1.27479843]
[1731023112409,15.64815855,196.02,195.96,15.64815855]
[1731023112608,15.64815855,196.02,195.97,1.2747906]
[1731023112810,15.64815855,196.02,195.98,1.2747906]
[1731023113019,15.64815855,196.02,195.99,1.2747906]
[1731023113208,15.64815855,196.02,196.0,1.27479591]
[1731023113406,15.64815855,196.03,195.97,15.64815855]
[1731023113603,15.64815855,196.03,195.98,1.27479613]
[1731023113794,15.64815855,196.04,195.99,1.27479613]
[1731023113993,15.64815855,196.04,196.0,1.27479613]
[1731023114190,15.64815855,196.04,195.98,15.64815855]
[1731023114416,15.64815855,196.04,195.99,1.27478613]
[1731023114706,15.64815855,196.04,196.0,1.27478613]
[1731023115008,15.64815855,196.03,195.95,2.54954756]
[1731023115188,15.64815855,196.03,195.97,15.64815855]
[1731023115390,15.64815855,196.03,195.98,3.31441945]
[1731023115591,15.64815855,196.03,195.97,15.64815855]
[1731023115796,15.64815855,196.03,195.98,3.31442625]
[1731023116092,15.64815855,196.03,195.99,3.3144336]
[1731023116293,15.64815855,196.03,196.0,1.27477603]
[1731023116494,15.64815855,196.03,196.01,1.27477603]
[1731023116717,15.64815855,196.03,196.02,1.27477603]
[1731023117014,15.64815855,196.03,195.96,15.64815855]
[1731023117210,15.64815855,196.03,195.93,22.3938]
[1731023117211,15.64815855,196.02,195.93,22.3938]
[1731023117390,15.64815855,196.02,195.96,15.64815855]
[1731023118193,15.64815855,196.01,195.95,15.64815855]
[1731023118512,15.64815855,196.01,195.96,15.64815855]
[1731023118707,15.64815855,196.02,195.96,15.64815855]
[1731023120096,15.64815855,196.02,195.97,15.64815855]
[1731023121284,9.99074232,196.02,195.97,9.99074232]
[1731023121706,9.99074232,196.02,195.91,2.03964293]
[1731023121707,9.99074232,196.02,195.96,9.99074232]
[1731023122410,0.12549,196.03,195.91,2.03964293]
[1731023122411,10.11623232,196.03,195.97,9.99074232]
[1731023122989,10.11623232,196.03,195.91,2.03964293]
[1731023123190,9.99074232,196.02,195.97,9.99074232]
[1731023125196,23.776884,196.04,195.97,9.99074232]
[1731023125400,9.99074232,196.03,195.98,9.99074232]
[1731023125593,33.76762632,196.04,195.98,9.99074232]
[1731023126710,9.99074232,196.03,195.98,9.99074232]
[1731023127298,33.76762632,196.04,195.98,9.99074232]
[1731023127509,15.393,196.05,195.98,9.99074232]
[1731023127815,5.32114161,196.07,196.03,9.99074232]
[1731023127994,5.32114161,196.07,196.04,9.99074232]
[1731023128194,10.11623232,196.09,196.03,9.99074232]
[1731023128394,0.12549,196.09,196.04,9.99074232]
[1731023128598,0.12549,196.09,196.05,9.99074232]
[1731023128815,0.12549,196.09,196.04,9.99074232]
[1731023129203,16.63894232,196.1,195.96,6.2952]
[1731023129411,9.99074232,196.05,195.96,6.2952]
[1731023129612,9.99074232,196.05,195.99,9.99074232]
[1731023129806,9.99074232,196.05,195.94,15.0608]
[1731023129996,9.99074232,196.05,195.91,6.2952]
[1731023129997,9.99074232,196.03,195.98,9.99074232]
[1731023130195,9.99074232,196.04,195.98,9.99074232]
[1731023130396,23.776884,196.04,195.99,9.99074232]
[1731023131121,9.99074232,196.04,195.98,9.99074232]
[1731023131300,9.99074232,196.03,195.91,6.2952]
[1731023131502,9.99074232,196.03,195.97,9.99074232]
[1731023132114,9.99074232,196.03,195.98,9.99074232]
[1731023133612,9.99074232,196.03,195.91,6.2952]
[1731023133793,9.99074232,196.0,195.94,9.99074232]
[1731023134322,9.99074232,196.01,195.95,9.99074232]
[1731023134496,9.99074232,196.02,195.96,9.99074232]
[1731023134704,9.99074232,196.0,195.91,6.2952]
[1731023134896,9.99074232,196.0,195.95,9.99074232]
[1731023135122,9.99074232,196.01,195.95,9.99074232]
[1731023135321,9.99074232,196.01,195.91,6.2952]
[1731023135510,9.99074232,195.99,195.92,1.27481743]
[1731023135819,9.99074232,195.99,195.93,11.26555975]
[1731023136007,16.6474,196.02,195.94,9.99074232]
[1731023136200,9.99074232,196.01,195.95,11.26563439]
[1731023136400,9.99074232,196.01,195.9,16.0596]
[1731023136734,9.99074232,196.01,195.95,9.99074232]
[1731023138009,26.63814232,196.02,195.96,9.99074232]
[1731023138731,9.99074232,196.01,195.95,9.99074232]
[1731023138927,9.99074232,196.0,195.94,9.99074232]
[1731023139316,9.99074232,195.99,195.93,9.99074232]
[1731023139626,9.99074232,196.01,195.94,11.26570372]
[1731023139830,9.99074232,196.01,195.94,9.99074232]
[1731023140023,9.99074232,196.0,195.94,9.99074232]
[1731023141216,9.99074232,196.01,195.95,9.99074232]
[1731023141404,26.63814232,196.02,195.95,9.99074232]
[1731023141611,26.63814232,196.02,195.96,9.99074232]
[1731023142826,5.31662693,196.05,195.97,9.99074232]
[1731023143030,5.31662693,196.05,196.0,9.99074232]
[1731023143031,15.30736925,196.05,196.0,9.99074232]
[1731023143208,9.99074232,196.05,196.0,9.99074232]
[1731023143620,9.99074232,196.05,195.99,9.99074232]
[1731023144513,5.31504458,196.08,196.0,9.99074232]
[1731023144714,9.99074232,196.07,196.01,9.99074232]
[1731023146634,9.99074232,196.06,196.0,9.99074232]
[1731023146822,9.99074232,196.05,195.99,9.99074232]
[1731023148212,5.31504458,196.08,196.0,9.99074232]
[1731023148213,9.99074232,196.06,196.0,9.99074232]
[1731023148414,9.99074232,196.05,195.95,6.6589]
[1731023148622,9.99074232,196.05,195.99,9.99074232]
[1731023148811,9.99074232,196.05,195.9,56.12256928]
[1731023148812,9.99074232,196.03,195.9,16.0596]
[1731023149018,9.99074232,196.03,195.97,9.99074232]
[1731023149430,5.31504458,196.08,195.99,9.99074232]
[1731023149608,5.31504458,196.08,196.0,9.99074232]
[1731023149806,9.99074232,196.06,196.0,9.99074232]
[1731023151222,9.99074232,196.07,196.01,9.99074232]
[1731023151720,9.99074232,196.07,195.91,7.5790545]
[1731023151721,9.99074232,196.06,196.0,9.99074232]
[1731023152031,9.99074232,196.07,196.01,9.99074232]
[1731023156448,15.3057869,196.08,196.02,9.99074232]
[1731023156912,5.31504458,196.08,196.02,9.99074232]
[1731023157115,26.24804232,196.09,196.03,9.99074232]
[1731023157315,5.31604333,196.11,196.03,9.99074232]
[1731023157522,5.31604333,196.11,196.04,9.99074232]
[1731023157836,9.99074232,196.1,196.04,9.99074232]
[1731023158037,15.30678565,196.11,196.05,9.99074232]
[1731023158209,16.1692,196.13,196.06,9.99074232]
[1731023158410,15.8673,196.19,196.11,9.99074232]
[1731023158613,9.99074232,196.17,196.11,9.99074232]
[1731023158836,9.99074232,196.16,196.1,9.99074232]
[1731023159035,9.99074232,196.17,196.11,9.99074232]
[1731023159408,21.18304816,196.19,196.11,9.99074232]
[1731023159637,9.99074232,196.18,196.12,9.99074232]
[1731023160136,9.99074232,196.18,196.03,6.1078]
[1731023160137,9.99074232,196.17,196.11,9.99074232]
[1731023160338,0.1,196.24,196.02,15.8204]
[1731023160339,0.2,196.28,196.12,22.8896]
[1731023160630,17.0595064,196.33,196.12,22.8896]
[1731023160631,9.99074232,196.19,196.12,22.8896]
[1731023160834,9.99074232,196.19,196.13,9.99074232]
[1731023161012,9.99074232,196.19,196.12,32.88034232]
[1731023161419,9.99074232,196.16,196.06,9.3212946]
[1731023161624,10.55724872,196.14,196.07,25.83014232]
[1731023162110,10.55724872,196.14,196.08,9.99074232]
[1731023162309,10.55724872,196.14,196.07,9.99074232]
[1731023162516,10.55724872,196.14,196.08,9.99074232]
[1731023163042,10.55724872,196.14,196.07,9.99074232]
[1731023163616,10.55724872,196.14,196.08,9.99074232]
[1731023163920,10.55724872,196.14,196.06,6.128]
[1731023164337,0.5665064,196.14,196.09,9.99074232]
[1731023166049,10.55724872,196.14,196.08,9.99074232]
[1731023166344,10.55724872,196.14,196.07,9.99074232]
[1731023166548,9.99074232,196.13,196.07,9.99074232]
[1731023169739,0.5665064,196.14,196.1,9.99074232]
[1731023170046,0.5665064,196.14,196.11,9.99074232]
[1731023170545,0.5665064,196.14,196.1,9.99074232]
[1731023170925,9.99074232,196.12,196.03,15.7828]
[1731023171121,9.99074232,196.11,196.05,9.99074232]
[1731023171539,9.99074232,196.11,196.03,15.7828]
[1731023171745,9.99074232,196.1,196.04,9.99074232]
[1731023171949,9.99074232,196.1,196.02,6.202]
[1731023172150,9.99074232,196.09,196.03,9.99074232]
[1731023174248,9.99074232,196.07,195.99,16.6345]
[1731023174424,0.12549,196.13,196.02,9.99074232]
[1731023174425,9.99074232,196.08,196.02,9.99074232]
[1731023175338,9.99074232,196.07,196.01,9.99074232]
[1731023175942,9.99074232,196.08,196.02,9.99074232]
[1731023176334,9.99074232,196.09,196.03,9.99074232]
[1731023178435,9.99074232,196.1,196.04,9.99074232]
[1731023178957,9.99074232,196.11,196.05,9.99074232]
[1731023179153,9.99074232,196.1,196.04,9.99074232]
[1731023180636,9.99074232,196.08,195.97,6.3067]
[1731023180836,9.99074232,196.07,195.97,6.3067]
[1731023181037,9.99074232,196.06,196.0,9.99074232]
[1731023181331,9.99074232,196.08,196.02,9.99074232]
[1731023182143,15.8045,196.09,196.05,9.99074232]
[1731023182459,9.99074232,196.12,196.06,9.99074232]
[1731023183139,9.99074232,196.11,196.05,9.99074232]
[1731023183658,9.99074232,196.11,196.0,39.96296928]
[1731023183848,16.2610064,196.14,196.08,9.99074232]
[1731023184037,26.25174872,196.14,196.08,9.99074232]
[1731023184352,9.99074232,196.13,196.07,9.99074232]
[1731023185446,9.99074232,196.12,196.06,9.99074232]
[1731023185945,9.99074232,196.13,196.07,9.99074232]
[1731023186148,0.5665064,196.14,196.08,9.99074232]
[1731023186348,0.5665064,196.14,196.01,15.1292]
[1731023186349,0.5665064,196.14,196.13,9.99074232]
[1731023187061,0.5665064,196.14,196.05,0.1]
[1731023187243,0.5665064,196.14,196.13,9.99074232]
[1731023187441,0.5665064,196.14,196.05,0.12549]
[1731023187736,0.5665064,196.14,196.06,1.27366189]
[1731023187950,0.5665064,196.14,196.1,9.99074232]
[1731023188236,0.5665064,196.14,196.02,6.66]
[1731023188442,0.5665064,196.14,196.09,9.99074232]
[1731023189363,0.5665064,196.14,196.09,15.59011533]
[1731023189753,0.5665064,196.14,196.1,15.59011533]
[1731023190060,0.5665064,196.14,196.11,15.59011533]
[1731023190864,0.5665064,196.14,196.12,15.59011533]
[1731023191240,0.5665064,196.14,196.13,15.59011533]
[1731023196440,0.5665064,196.14,196.1,6.6863]
[1731023196641,0.5665064,196.14,196.13,15.59011533]
[1731023197646,0.5665064,196.14,196.13,16.8635612]
[1731023197845,0.5665064,196.14,196.13,40.8659352]
[1731023198049,0.5665064,196.14,196.13,40.7659352]
[1731023198454,0.5665064,196.14,196.13,40.8659352]
[1731023199147,15.7821,196.25,196.15,0.1]
[1731023199362,21.60931533,196.29,196.23,15.59011533]
[1731023199570,26.92372162,196.29,196.23,15.59011533]
[1731023199755,6.0192,196.29,196.23,15.59011533]
[1731023200069,15.59011533,196.28,196.22,15.59011533]
[1731023201056,15.59011533,196.27,196.21,15.59011533]
[1731023201245,15.59011533,196.25,196.14,43.776884]
[1731023201445,15.59011533,196.25,196.12,0.1]
[1731023201446,15.59011533,196.24,196.18,15.59011533]
[1731023201761,15.59011533,196.25,196.19,15.59011533]
[1731023202066,15.59011533,196.2,196.1,6.5863]
[1731023202266,15.59011533,196.2,196.13,15.59011533]
[1731023203171,15.59011533,196.2,196.14,15.59011533]
[1731023203875,15.59011533,196.21,196.14,15.59011533]
[1731023204373,15.59011533,196.2,196.14,15.59011533]
[1731023206364,15.59011533,196.21,196.15,15.59011533]
[1731023207776,15.59011533,196.22,196.15,15.59011533]
[1731023208374,16.2228,196.27,196.15,15.59011533]
[1731023208375,15.59011533,196.21,196.15,15.59011533]
[1731023208848,15.59011533,196.22,196.15,15.59011533]
[1731023209470,15.59011533,196.21,196.14,15.59011533]
[1731023211370,9.97154635,196.21,196.14,9.97154635]
[1731023212564,9.97154635,196.2,196.14,9.97154635]
[1731023214677,9.97154635,196.21,196.16,9.97154635]
[1731023214976,9.97154635,196.21,196.15,9.97154635]